[Event "December 12 Early 2023"]
[Site "https://www.chess.com"]
[Date "2023.12.12"]
[Round "3"]
[White "Cardozo Munar, Carlos Eduardo"]
[Black "Flores Quillas, Diego Saul Rodri"]
[Result "0-1"]
[Board "142"]
[TimeControl "180+1"]
[WhiteFideId "4409477"]
[BlackFideId "3822508"]
[WhiteElo "2281"]
[BlackElo "2540"]
[WhiteTeam "COL"]
[BlackTeam "PER"]
[WhiteClock "0:01:32"]
[BlackClock "0:01:35"]

1. g3 {[%clk 0:03:00]}  d5 {[%clk 0:02:59]} 2. Bg2 {[%clk 0:03:00]}  c6 {[%clk 0:03:00]} 3. Nf3 {[%clk 0:03:00]}  Bf5 {[%clk 0:03:00]} 4. d4 {[%clk 0:03:01]}  e6 {[%clk 0:02:58]} 5. O-O {[%clk 0:03:01]}  h6 {[%clk 0:02:57]} 6. Nbd2 {[%clk 0:03:01]}  Nf6 {[%clk 0:02:57]} 7. Re1 {[%clk 0:03:02]}  Nbd7 {[%clk 0:02:57]} 8. Ne5 {[%clk 0:03:01]}  Bd6 {[%clk 0:02:51]} 9. Nxd7 {[%clk 0:03:01]}  Qxd7 {[%clk 0:02:51]} 10. c3 {[%clk 0:03:01]}  O-O {[%clk 0:02:50]} 11. Qb3 {[%clk 0:03:01]}  c5 {[%clk 0:02:23]} 12. dxc5 {[%clk 0:02:58]}  Bxc5 {[%clk 0:02:24]} 13. e4 {[%clk 0:02:58]}  Ng4 {[%clk 0:02:14]} 14. exf5 {[%clk 0:02:49]}  Bxf2+ {[%clk 0:02:11]} 15. Kf1 {[%clk 0:02:50]}  Bxe1 {[%clk 0:02:11]} 16. Kxe1 {[%clk 0:02:50]}  exf5 {[%clk 0:02:12]} 17. h3 {[%clk 0:02:14]}  Rfe8+ {[%clk 0:02:04]} 18. Kf1 {[%clk 0:02:14]}  Ne3+ {[%clk 0:02:05]} 19. Kg1 {[%clk 0:02:14]}  Nxg2 {[%clk 0:01:42]} 20. Kxg2 {[%clk 0:02:14]}  Re2+ {[%clk 0:01:42]} 21. Kf1 {[%clk 0:02:12]}  Rae8 {[%clk 0:01:43]} 22. Nf3 {[%clk 0:02:12]}  f4 {[%clk 0:01:43]} 23. g4 {[%clk 0:02:08]}  h5 {[%clk 0:01:43]} 24. Qd1 {[%clk 0:01:51]}  hxg4 {[%clk 0:01:42]} 25. hxg4 {[%clk 0:01:52]}  Qxg4 {[%clk 0:01:41]} 26. Qxe2 {[%clk 0:01:52]}  Rxe2 {[%clk 0:01:41]} 27. Kxe2 {[%clk 0:01:53]}  Qg2+ {[%clk 0:01:42]} 28. Kd3 {[%clk 0:01:48]}  Qxf3+ {[%clk 0:01:42]} 29. Kc2 {[%clk 0:01:48]}  Qe2+ {[%clk 0:01:42]} 30. Bd2 {[%clk 0:01:49]}  f3 {[%clk 0:01:43]} 31. Re1 {[%clk 0:01:49]}  Qc4 {[%clk 0:01:38]} 32. b3 {[%clk 0:01:32]}  Qa6 {[%clk 0:01:35]} 0-1

[Event "December 12 Early 2023"]
[Site "https://www.chess.com"]
[Date "2023.12.12"]
[Round "3"]
[White "Jimenez Almeida, Luis David"]
[Black "Mishra, Manoj"]
[Result "1-0"]
[Board "143"]
[TimeControl "180+1"]
[WhiteFideId "22242244"]
[BlackFideId "5006007"]
[WhiteElo "2536"]
[BlackElo "2252"]
[WhiteTeam "ESP"]
[BlackTeam "IND"]
[WhiteClock "0:00:35"]
[BlackClock "0:00:00"]

1. e4 {[%clk 0:03:00]}  Nf6 {[%clk 0:02:55]} 2. e5 {[%clk 0:03:00]}  Nd5 {[%clk 0:02:50]} 3. c4 {[%clk 0:03:00]}  Nb6 {[%clk 0:02:49]} 4. d4 {[%clk 0:03:00]}  d6 {[%clk 0:02:49]} 5. exd6 {[%clk 0:02:56]}  cxd6 {[%clk 0:02:50]} 6. Nc3 {[%clk 0:02:54]}  g6 {[%clk 0:02:50]} 7. Be3 {[%clk 0:02:54]}  Bg7 {[%clk 0:02:50]} 8. Bd3 {[%clk 0:02:51]}  O-O {[%clk 0:02:49]} 9. Nge2 {[%clk 0:02:51]}  Nc6 {[%clk 0:02:47]} 10. Qd2 {[%clk 0:02:44]}  e5 {[%clk 0:02:43]} 11. d5 {[%clk 0:02:40]}  Ne7 {[%clk 0:02:25]} 12. O-O {[%clk 0:02:37]}  f5 {[%clk 0:02:24]} 13. f3 {[%clk 0:02:37]}  f4 {[%clk 0:02:22]} 14. Bf2 {[%clk 0:02:36]}  Nf5 {[%clk 0:02:21]} 15. Ne4 {[%clk 0:02:31]}  Nd7 {[%clk 0:02:09]} 16. b4 {[%clk 0:02:28]}  Nf6 {[%clk 0:02:08]} 17. Rac1 {[%clk 0:02:18]}  Nxe4 {[%clk 0:02:07]} 18. Bxe4 {[%clk 0:02:16]}  Qg5 {[%clk 0:02:06]} 19. Bxf5 {[%clk 0:01:45]}  Bxf5 {[%clk 0:02:02]} 20. Nc3 {[%clk 0:01:45]}  Bh6 {[%clk 0:01:49]} 21. c5 {[%clk 0:01:42]}  Bh3 {[%clk 0:01:48]} 22. Be1 {[%clk 0:01:39]}  Bf5 {[%clk 0:01:15]} 23. Bf2 {[%clk 0:01:23]}  Rad8 {[%clk 0:01:12]} 24. c6 {[%clk 0:01:14]}  bxc6 {[%clk 0:01:07]} 25. dxc6 {[%clk 0:01:15]}  Rc8 {[%clk 0:00:56]} 26. b5 {[%clk 0:01:12]}  e4 {[%clk 0:00:38]} 27. Qd5+ {[%clk 0:01:05]}  Rf7 {[%clk 0:00:33]} 28. Nxe4 {[%clk 0:00:53]}  Bxe4 {[%clk 0:00:33]} 29. Qxg5 {[%clk 0:00:53]}  Bxg5 {[%clk 0:00:33]} 30. fxe4 {[%clk 0:00:53]}  f3 {[%clk 0:00:32]} 31. Rcd1 {[%clk 0:00:47]}  fxg2 {[%clk 0:00:29]} 32. Kxg2 {[%clk 0:00:48]}  Bf4 {[%clk 0:00:21]} 33. Bg3 {[%clk 0:00:45]}  Bxg3 {[%clk 0:00:13]} 34. Kxg3 {[%clk 0:00:41]}  Re7 {[%clk 0:00:12]} 35. Rf4 {[%clk 0:00:38]}  Kg7 {[%clk 0:00:07]} 36. Rxd6 {[%clk 0:00:37]}  a6 {[%clk 0:00:06]} 37. a4 {[%clk 0:00:36]}  axb5 {[%clk 0:00:06]} 38. axb5 {[%clk 0:00:37]}  Re5 {[%clk 0:00:06]} 39. b6 {[%clk 0:00:36]}  Rb5 {[%clk 0:00:06]} 40. b7 {[%clk 0:00:36]}  Rc7 {[%clk 0:00:06]} 41. Rd7+ {[%clk 0:00:34]}  Rxd7 {[%clk 0:00:04]} 42. cxd7 {[%clk 0:00:35]}  Rxb7 {[%clk 0:00:04]} 43. d8=Q {[%clk 0:00:35]}  Kh6 {[%clk 0:00:04]} 44. Rh4+ {[%clk 0:00:35]}  Kg7 {[%clk 0:00:02]} 45. Qd4+ {[%clk 0:00:34]}  Kg8 {[%clk 0:00:01]} 46. Qd5+ {[%clk 0:00:34]}  Rf7 {[%clk 0:00:01]} 47. Qxf7+ {[%clk 0:00:34]}  Kxf7 {[%clk 0:00:00]} 48. Rxh7+ {[%clk 0:00:35]} 1-0

[Event "December 12 Early 2023"]
[Site "https://www.chess.com"]
[Date "2023.12.12"]
[Round "3"]
[White "Adelman, Charles"]
[Black "Hirneise, Jens"]
[Result "0-1"]
[Board "145"]
[TimeControl "180+1"]
[WhiteFideId "2003597"]
[BlackFideId "24614734"]
[WhiteElo "2256"]
[BlackElo "2535"]
[WhiteTeam "USA"]
[BlackTeam "GER"]
[WhiteClock "0:00:54"]
[BlackClock "0:01:22"]

1. Nf3 {[%clk 0:02:58]}  c6 {[%clk 0:02:57]} 2. c4 {[%clk 0:02:57]}  d5 {[%clk 0:02:55]} 3. b3 {[%clk 0:02:58]}  d4 {[%clk 0:02:52]} 4. g3 {[%clk 0:02:50]}  g6 {[%clk 0:02:51]} 5. d3 {[%clk 0:02:48]}  e5 {[%clk 0:02:46]} 6. Bg2 {[%clk 0:02:42]}  Nf6 {[%clk 0:02:42]} 7. O-O {[%clk 0:02:41]}  Nbd7 {[%clk 0:02:42]} 8. Nbd2 {[%clk 0:02:24]}  Bg7 {[%clk 0:02:41]} 9. b4 {[%clk 0:02:24]}  O-O {[%clk 0:02:41]} 10. Bb2 {[%clk 0:02:22]}  Re8 {[%clk 0:02:41]} 11. e3 {[%clk 0:02:20]}  dxe3 {[%clk 0:02:39]} 12. fxe3 {[%clk 0:02:21]}  Qb6 {[%clk 0:02:35]} 13. d4 {[%clk 0:02:07]}  exd4 {[%clk 0:02:25]} 14. Bxd4 {[%clk 0:02:05]}  Qxb4 {[%clk 0:02:25]} 15. Rb1 {[%clk 0:02:03]}  Qe7 {[%clk 0:02:25]} 16. Re1 {[%clk 0:01:51]}  c5 {[%clk 0:02:18]} 17. Ba1 {[%clk 0:01:50]}  Nb6 {[%clk 0:02:10]} 18. a4 {[%clk 0:01:43]}  Bf5 {[%clk 0:01:55]} 19. Rb5 {[%clk 0:01:36]}  Bd7 {[%clk 0:01:52]} 20. Ra5 {[%clk 0:01:32]}  Bc6 {[%clk 0:01:44]} 21. Ne5 {[%clk 0:01:26]}  Bxg2 {[%clk 0:01:38]} 22. Kxg2 {[%clk 0:01:26]}  Nbd7 {[%clk 0:01:31]} 23. Nxd7 {[%clk 0:01:19]}  Nxd7 {[%clk 0:01:29]} 24. Bxg7 {[%clk 0:01:15]}  Kxg7 {[%clk 0:01:30]} 25. Nf3 {[%clk 0:01:13]}  a6 {[%clk 0:01:24]} 26. Qd5 {[%clk 0:00:54]}  b6 {[%clk 0:01:22]} 0-1

[Event "December 12 Early 2023"]
[Site "https://www.chess.com"]
[Date "2023.12.12"]
[Round "3"]
[White "Kazmin, Semen"]
[Black "Nechitaylo, Nikita"]
[Result "0-1"]
[Board "146"]
[TimeControl "180+1"]
[WhiteFideId "34171409"]
[BlackFideId "34138161"]
[WhiteElo "2534"]
[BlackElo "2252"]
[WhiteTeam "RUS"]
[BlackTeam "UKR"]
[WhiteClock "0:00:00"]
[BlackClock "0:00:18"]

1. e4 {[%clk 0:02:57]}  c5 {[%clk 0:03:00]} 2. Nf3 {[%clk 0:02:57]}  d6 {[%clk 0:03:00]} 3. Nc3 {[%clk 0:02:54]}  Nf6 {[%clk 0:02:59]} 4. d4 {[%clk 0:02:54]}  cxd4 {[%clk 0:02:59]} 5. Qxd4 {[%clk 0:02:54]}  Nc6 {[%clk 0:03:00]} 6. Qd2 {[%clk 0:02:55]}  g6 {[%clk 0:02:55]} 7. b3 {[%clk 0:02:42]}  Bg7 {[%clk 0:02:53]} 8. Bb2 {[%clk 0:02:40]}  Nxe4 {[%clk 0:02:47]} 9. Qe3 {[%clk 0:02:38]}  Qa5 {[%clk 0:02:31]} 10. Nd2 {[%clk 0:01:24]}  Bxc3 {[%clk 0:02:17]} 11. O-O-O {[%clk 0:01:08]}  Bxd2+ {[%clk 0:01:35]} 12. Rxd2 {[%clk 0:01:06]}  Qxd2+ {[%clk 0:01:35]} 13. Qxd2 {[%clk 0:01:07]}  Nxd2 {[%clk 0:01:36]} 14. Bxh8 {[%clk 0:01:05]}  Nxf1 {[%clk 0:01:36]} 15. Rxf1 {[%clk 0:01:06]}  f6 {[%clk 0:01:32]} 16. Bg7 {[%clk 0:00:56]}  Kf7 {[%clk 0:01:32]} 17. Bh6 {[%clk 0:00:52]}  g5 {[%clk 0:01:32]} 18. f4 {[%clk 0:00:48]}  Kg6 {[%clk 0:01:33]} 19. fxg5 {[%clk 0:00:47]}  fxg5 {[%clk 0:01:34]} 20. Bf8 {[%clk 0:00:47]}  Bf5 {[%clk 0:01:28]} 21. Bg7 {[%clk 0:00:44]}  e5 {[%clk 0:01:14]} 22. Bh6 {[%clk 0:00:19]}  Nd4 {[%clk 0:01:09]} 23. c3 {[%clk 0:00:08]}  Ne2+ {[%clk 0:00:47]} 24. Kd2 {[%clk 0:00:08]}  Nf4 {[%clk 0:00:47]} 25. g3 {[%clk 0:00:08]}  Ne6 {[%clk 0:00:41]} 26. h4 {[%clk 0:00:04]}  Kxh6 {[%clk 0:00:19]} 27. Rxf5 {[%clk 0:00:05]}  Rf8 {[%clk 0:00:19]} 28. hxg5+ {[%clk 0:00:02]}  Kg6 {[%clk 0:00:20]} 29. Rxf8 {[%clk 0:00:01]}  Nxf8 {[%clk 0:00:21]} 30. Kd3 {[%clk 0:00:01]}  d5 {[%clk 0:00:21]} 31. c4 {[%clk 0:00:01]}  d4 {[%clk 0:00:21]} 32. Ke4 {[%clk 0:00:02]}  Kxg5 {[%clk 0:00:21]} 33. b4 {[%clk 0:00:02]}  Nd7 {[%clk 0:00:18]} 34. c5 {[%clk 0:00:00]}  Kg4 {[%clk 0:00:18]} 0-1

[Event "December 12 Early 2023"]
[Site "https://www.chess.com"]
[Date "2023.12.12"]
[Round "3"]
[White "Rodriguez Avila, Alvaro"]
[Black "Yashmetov, Mikhail"]
[Result "1-0"]
[Board "147"]
[TimeControl "180+1"]
[WhiteFideId "24570249"]
[BlackFideId "24198900"]
[WhiteElo "2247"]
[BlackElo "2534"]
[WhiteTeam "ESP"]
[BlackTeam "RUS"]
[WhiteClock "0:01:14"]
[BlackClock "0:00:01"]

1. e4 {[%clk 0:03:00]}  c6 {[%clk 0:02:56]} 2. d4 {[%clk 0:03:01]}  d5 {[%clk 0:02:56]} 3. e5 {[%clk 0:03:01]}  Bf5 {[%clk 0:02:56]} 4. h4 {[%clk 0:03:00]}  h6 {[%clk 0:02:56]} 5. Bd3 {[%clk 0:03:01]}  Bxd3 {[%clk 0:02:55]} 6. Qxd3 {[%clk 0:03:02]}  e6 {[%clk 0:02:56]} 7. Ne2 {[%clk 0:03:00]}  c5 {[%clk 0:02:51]} 8. c3 {[%clk 0:03:00]}  Nc6 {[%clk 0:02:50]} 9. a3 {[%clk 0:02:59]}  Rc8 {[%clk 0:02:50]} 10. Nd2 {[%clk 0:02:56]}  Qb6 {[%clk 0:02:51]} 11. b4 {[%clk 0:02:48]}  cxd4 {[%clk 0:02:48]} 12. cxd4 {[%clk 0:02:48]}  Nge7 {[%clk 0:02:47]} 13. Nf3 {[%clk 0:02:42]}  g6 {[%clk 0:02:07]} 14. h5 {[%clk 0:02:34]}  g5 {[%clk 0:02:01]} 15. O-O {[%clk 0:02:30]}  Bg7 {[%clk 0:01:54]} 16. Nh2 {[%clk 0:02:28]}  Nf5 {[%clk 0:01:46]} 17. Be3 {[%clk 0:02:28]}  O-O {[%clk 0:01:31]} 18. Ng4 {[%clk 0:02:28]}  Qd8 {[%clk 0:01:21]} 19. Ng3 {[%clk 0:02:19]}  Nce7 {[%clk 0:01:02]} 20. Nf6+ {[%clk 0:02:13]}  Kh8 {[%clk 0:00:58]} 21. Rac1 {[%clk 0:02:04]}  Rxc1 {[%clk 0:00:53]} 22. Rxc1 {[%clk 0:02:04]}  a6 {[%clk 0:00:30]} 23. a4 {[%clk 0:01:58]}  Qb6 {[%clk 0:00:17]} 24. Nd7 {[%clk 0:01:49]}  Qd8 {[%clk 0:00:06]} 25. Nxf8 {[%clk 0:01:49]}  Qxf8 {[%clk 0:00:06]} 26. Rc7 {[%clk 0:01:44]}  Qb8 {[%clk 0:00:04]} 27. Qc2 {[%clk 0:01:42]}  Nxg3 {[%clk 0:00:03]} 28. fxg3 {[%clk 0:01:41]}  Bf8 {[%clk 0:00:02]} 29. g4 {[%clk 0:01:40]}  Kg7 {[%clk 0:00:02]} 30. b5 {[%clk 0:01:35]}  axb5 {[%clk 0:00:02]} 31. axb5 {[%clk 0:01:36]}  Nc6 {[%clk 0:00:02]} 32. Qg6+ {[%clk 0:01:14]}  Kh8 {[%clk 0:00:01]} 33. Rxf7 {[%clk 0:01:15]}  Ne7 {[%clk 0:00:01]} 34. Qh7# {[%clk 0:01:14]} 1-0

[Event "December 12 Early 2023"]
[Site "https://www.chess.com"]
[Date "2023.12.12"]
[Round "3"]
[White "Monpeurt, Cyrielle"]
[Black "Estrada Nieto, Julian"]
[Result "1/2-1/2"]
[Board "149"]
[TimeControl "180+1"]
[WhiteFideId "677400"]
[BlackFideId "5101018"]
[WhiteElo "2244"]
[BlackElo "2532"]
[WhiteTeam "FRA"]
[BlackTeam "ESP"]
[WhiteClock "0:00:15"]
[BlackClock "0:00:21"]

1. Nf3 {[%clk 0:03:00]}  d5 {[%clk 0:02:59]} 2. c4 {[%clk 0:02:55]}  d4 {[%clk 0:02:58]} 3. e3 {[%clk 0:02:50]}  Nc6 {[%clk 0:02:58]} 4. b4 {[%clk 0:02:46]}  dxe3 {[%clk 0:02:56]} 5. fxe3 {[%clk 0:02:43]}  Nxb4 {[%clk 0:02:56]} 6. d4 {[%clk 0:02:43]}  e6 {[%clk 0:02:55]} 7. Be2 {[%clk 0:02:29]}  Nf6 {[%clk 0:02:53]} 8. O-O {[%clk 0:02:29]}  Be7 {[%clk 0:02:47]} 9. Nc3 {[%clk 0:02:13]}  O-O {[%clk 0:02:45]} 10. Ng5 {[%clk 0:02:00]}  c5 {[%clk 0:02:40]} 11. Bf3 {[%clk 0:01:18]}  Nc6 {[%clk 0:02:33]} 12. d5 {[%clk 0:01:12]}  Ne5 {[%clk 0:02:33]} 13. Be2 {[%clk 0:01:07]}  exd5 {[%clk 0:02:32]} 14. cxd5 {[%clk 0:01:07]}  Nxd5 {[%clk 0:02:27]} 15. Nxd5 {[%clk 0:00:43]}  Bxg5 {[%clk 0:02:26]} 16. e4 {[%clk 0:00:41]}  Be6 {[%clk 0:02:14]} 17. Bxg5 {[%clk 0:00:19]}  Qxg5 {[%clk 0:02:14]} 18. Rc1 {[%clk 0:00:19]}  Rad8 {[%clk 0:01:50]} 19. Qb3 {[%clk 0:00:19]}  b6 {[%clk 0:01:42]} 20. Rcd1 {[%clk 0:00:16]}  Bxd5 {[%clk 0:01:35]} 21. exd5 {[%clk 0:00:17]}  Rd6 {[%clk 0:01:29]} 22. Kh1 {[%clk 0:00:17]}  Rfd8 {[%clk 0:01:27]} 23. Bf3 {[%clk 0:00:15]}  g6 {[%clk 0:01:24]} 24. h3 {[%clk 0:00:14]}  c4 {[%clk 0:01:21]} 25. Qc3 {[%clk 0:00:13]}  b5 {[%clk 0:01:18]} 26. Rfe1 {[%clk 0:00:13]}  Nxf3 {[%clk 0:01:17]} 27. Qxf3 {[%clk 0:00:14]}  Rxd5 {[%clk 0:01:15]} 28. Rxd5 {[%clk 0:00:13]}  Qxd5 {[%clk 0:01:11]} 29. Qf6 {[%clk 0:00:13]}  Qd6 {[%clk 0:01:07]} 30. Re8+ {[%clk 0:00:11]}  Rxe8 {[%clk 0:01:07]} 31. Qxd6 {[%clk 0:00:11]}  Re1+ {[%clk 0:00:55]} 32. Kh2 {[%clk 0:00:11]}  Re2 {[%clk 0:00:56]} 33. Qc6 {[%clk 0:00:10]}  Rxa2 {[%clk 0:00:52]} 34. Qxb5 {[%clk 0:00:10]}  c3 {[%clk 0:00:50]} 35. Qb8+ {[%clk 0:00:10]}  Kg7 {[%clk 0:00:49]} 36. Qe5+ {[%clk 0:00:10]}  Kg8 {[%clk 0:00:49]} 37. Qxc3 {[%clk 0:00:11]}  Re2 {[%clk 0:00:45]} 38. Qc8+ {[%clk 0:00:10]}  Kg7 {[%clk 0:00:45]} 39. Qc3+ {[%clk 0:00:11]}  Kg8 {[%clk 0:00:44]} 40. Qa5 {[%clk 0:00:12]}  Re6 {[%clk 0:00:40]} 41. Qd8+ {[%clk 0:00:12]}  Kg7 {[%clk 0:00:40]} 42. Qd4+ {[%clk 0:00:12]}  Kg8 {[%clk 0:00:37]} 43. Qxa7 {[%clk 0:00:13]}  h5 {[%clk 0:00:37]} 44. Qa8+ {[%clk 0:00:12]}  Kg7 {[%clk 0:00:38]} 45. Qf3 {[%clk 0:00:12]}  Kg8 {[%clk 0:00:36]} 46. Qc3 {[%clk 0:00:13]}  Kh7 {[%clk 0:00:35]} 47. Qd4 {[%clk 0:00:13]}  Kg8 {[%clk 0:00:35]} 48. Qd8+ {[%clk 0:00:13]}  Kg7 {[%clk 0:00:35]} 49. Qd4+ {[%clk 0:00:14]}  Kg8 {[%clk 0:00:36]} 50. g4 {[%clk 0:00:13]}  hxg4 {[%clk 0:00:35]} 51. hxg4 {[%clk 0:00:13]}  Re8 {[%clk 0:00:34]} 52. Kg3 {[%clk 0:00:14]}  Re6 {[%clk 0:00:34]} 53. g5 {[%clk 0:00:14]}  Re8 {[%clk 0:00:29]} 54. Kf4 {[%clk 0:00:14]}  Re6 {[%clk 0:00:29]} 55. Qd8+ {[%clk 0:00:14]}  Kg7 {[%clk 0:00:29]} 56. Qd7 {[%clk 0:00:14]}  Kg8 {[%clk 0:00:21]} 57. Qd8+ {[%clk 0:00:14]}  Kg7 {[%clk 0:00:21]} 58. Qd4+ {[%clk 0:00:15]}  Kg8 {[%clk 0:00:22]} 59. Qd5 {[%clk 0:00:14]}  Re8 {[%clk 0:00:21]} 60. Qd7 {[%clk 0:00:14]}  Re6 {[%clk 0:00:21]} 61. Qc8+ {[%clk 0:00:14]}  Kg7 {[%clk 0:00:21]} 62. Qd7 {[%clk 0:00:15]}  Kg8 {[%clk 0:00:21]} 1/2-1/2

[Event "December 12 Early 2023"]
[Site "https://www.chess.com"]
[Date "2023.12.12"]
[Round "3"]
[White "Fernandez Siles, Luis"]
[Black "Durucay, Uygar"]
[Result "1-0"]
[Board "152"]
[TimeControl "180+1"]
[WhiteFideId "2209420"]
[BlackFideId "44591560"]
[WhiteElo "2304"]
[BlackElo "2528"]
[WhiteTeam "ESP"]
[BlackTeam "TUR"]
[WhiteClock "0:00:31"]
[BlackClock "0:00:00"]

1. e4 {[%clk 0:03:00]}  c6 {[%clk 0:02:56]} 2. d4 {[%clk 0:03:00]}  d5 {[%clk 0:02:55]} 3. exd5 {[%clk 0:03:01]}  cxd5 {[%clk 0:02:56]} 4. c4 {[%clk 0:03:02]}  Nf6 {[%clk 0:02:54]} 5. Nc3 {[%clk 0:03:03]}  Nc6 {[%clk 0:02:54]} 6. Bg5 {[%clk 0:03:01]}  dxc4 {[%clk 0:02:41]} 7. Bxc4 {[%clk 0:03:02]}  e6 {[%clk 0:02:36]} 8. Nf3 {[%clk 0:03:01]}  Be7 {[%clk 0:02:36]} 9. O-O {[%clk 0:03:00]}  O-O {[%clk 0:02:36]} 10. Re1 {[%clk 0:03:00]}  b6 {[%clk 0:02:33]} 11. a3 {[%clk 0:03:00]}  Bb7 {[%clk 0:02:34]} 12. Ba2 {[%clk 0:02:55]}  Rc8 {[%clk 0:02:24]} 13. Qd3 {[%clk 0:02:55]}  h6 {[%clk 0:02:24]} 14. Be3 {[%clk 0:02:46]}  Bd6 {[%clk 0:01:58]} 15. Rad1 {[%clk 0:02:29]}  Ne7 {[%clk 0:01:58]} 16. Bc1 {[%clk 0:02:19]}  Ned5 {[%clk 0:01:54]} 17. Bb1 {[%clk 0:02:08]}  Bb8 {[%clk 0:01:40]} 18. Ne2 {[%clk 0:01:54]}  Qd6 {[%clk 0:01:23]} 19. Ng3 {[%clk 0:01:53]}  Nf4 {[%clk 0:01:19]} 20. Qe3 {[%clk 0:01:42]}  Ng4 {[%clk 0:00:57]} 21. Qxf4 {[%clk 0:01:22]}  Qxf4 {[%clk 0:00:57]} 22. Bxf4 {[%clk 0:01:23]}  Bxf4 {[%clk 0:00:58]} 23. Be4 {[%clk 0:01:17]}  Ba6 {[%clk 0:00:34]} 24. d5 {[%clk 0:01:13]}  exd5 {[%clk 0:00:34]} 25. Bxd5 {[%clk 0:01:12]}  Rc2 {[%clk 0:00:32]} 26. b3 {[%clk 0:01:05]}  Nxf2 {[%clk 0:00:30]} 27. Rd4 {[%clk 0:00:48]}  Bxg3 {[%clk 0:00:16]} 28. hxg3 {[%clk 0:00:48]}  Nd3 {[%clk 0:00:17]} 29. Re7 {[%clk 0:00:45]}  Rc1+ {[%clk 0:00:11]} 30. Kh2 {[%clk 0:00:45]}  Nf2 {[%clk 0:00:11]} 31. g4 {[%clk 0:00:44]}  Bc8 {[%clk 0:00:08]} 32. Kg3 {[%clk 0:00:43]}  Nxg4 {[%clk 0:00:05]} 33. Rxg4 {[%clk 0:00:42]}  Bxg4 {[%clk 0:00:06]} 34. Kxg4 {[%clk 0:00:43]}  Ra1 {[%clk 0:00:06]} 35. a4 {[%clk 0:00:42]}  Rd1 {[%clk 0:00:06]} 36. Bc4 {[%clk 0:00:41]}  Rd6 {[%clk 0:00:06]} 37. Ne5 {[%clk 0:00:40]}  Rf6 {[%clk 0:00:07]} 38. Nd7 {[%clk 0:00:40]}  Rg6+ {[%clk 0:00:08]} 39. Kf5 {[%clk 0:00:36]}  Rxg2 {[%clk 0:00:03]} 40. Nxf8 {[%clk 0:00:34]}  Kxf8 {[%clk 0:00:04]} 41. Rxf7+ {[%clk 0:00:35]}  Ke8 {[%clk 0:00:05]} 42. Rxa7 {[%clk 0:00:35]}  h5 {[%clk 0:00:05]} 43. Bf7+ {[%clk 0:00:33]}  Kd8 {[%clk 0:00:04]} 44. Bxh5 {[%clk 0:00:34]}  Rf2+ {[%clk 0:00:03]} 45. Ke5 {[%clk 0:00:31]}  Rb2 {[%clk 0:00:04]} 46. Bf7 {[%clk 0:00:30]}  g5 {[%clk 0:00:04]} 47. Bc4 {[%clk 0:00:30]}  g4 {[%clk 0:00:05]} 48. Rg7 {[%clk 0:00:30]}  Rg2 {[%clk 0:00:00]} 49. Kf4 {[%clk 0:00:31]} 1-0

[Event "December 12 Early 2023"]
[Site "https://www.chess.com"]
[Date "2023.12.12"]
[Round "3"]
[White "Sroczynski, Maciej"]
[Black "Osmonbekov, Talaibek"]
[Result "1-0"]
[Board "153"]
[TimeControl "180+1"]
[WhiteFideId "1121472"]
[BlackFideId "2017253"]
[WhiteElo "2528"]
[BlackElo "2215"]
[WhiteTeam "POL"]
[BlackTeam "USA"]
[WhiteClock "0:00:07"]
[BlackClock "0:00:00"]

1. d4 {[%clk 0:02:57]}  e6 {[%clk 0:02:51]} 2. c4 {[%clk 0:02:53]}  f5 {[%clk 0:02:51]} 3. g3 {[%clk 0:02:52]}  Nf6 {[%clk 0:02:51]} 4. Bg2 {[%clk 0:02:52]}  Be7 {[%clk 0:02:52]} 5. f4 {[%clk 0:02:47]}  O-O {[%clk 0:02:52]} 6. Nf3 {[%clk 0:02:47]}  d6 {[%clk 0:02:51]} 7. Nc3 {[%clk 0:02:45]}  Nbd7 {[%clk 0:02:49]} 8. Ng5 {[%clk 0:02:39]}  Nb6 {[%clk 0:02:48]} 9. b3 {[%clk 0:02:38]}  h6 {[%clk 0:02:47]} 10. Nf3 {[%clk 0:02:38]}  Ne4 {[%clk 0:02:47]} 11. Bb2 {[%clk 0:02:29]}  a5 {[%clk 0:02:45]} 12. a4 {[%clk 0:02:28]}  Bf6 {[%clk 0:02:42]} 13. O-O {[%clk 0:02:25]}  g5 {[%clk 0:02:27]} 14. e3 {[%clk 0:02:20]}  g4 {[%clk 0:02:16]} 15. Nd2 {[%clk 0:02:19]}  d5 {[%clk 0:02:14]} 16. Ndxe4 {[%clk 0:02:05]}  fxe4 {[%clk 0:02:10]} 17. Qxg4+ {[%clk 0:01:49]}  Kh8 {[%clk 0:02:09]} 18. c5 {[%clk 0:01:48]}  Nd7 {[%clk 0:02:00]} 19. Qh5 {[%clk 0:01:30]}  Bg7 {[%clk 0:01:57]} 20. Bh3 {[%clk 0:01:24]}  Nf6 {[%clk 0:01:52]} 21. Qe2 {[%clk 0:01:21]}  Qe7 {[%clk 0:01:35]} 22. Kh1 {[%clk 0:01:20]}  c6 {[%clk 0:01:33]} 23. g4 {[%clk 0:01:19]}  Bd7 {[%clk 0:01:28]} 24. Rg1 {[%clk 0:01:19]}  Nh7 {[%clk 0:01:27]} 25. Nd1 {[%clk 0:01:10]}  Qh4 {[%clk 0:01:19]} 26. Qg2 {[%clk 0:01:09]}  Rg8 {[%clk 0:00:58]} 27. Nf2 {[%clk 0:01:05]}  Raf8 {[%clk 0:00:56]} 28. Bc3 {[%clk 0:01:05]}  Bf6 {[%clk 0:00:48]} 29. Bxa5 {[%clk 0:01:04]}  Bxd4 {[%clk 0:00:44]} 30. exd4 {[%clk 0:01:02]}  Rxf4 {[%clk 0:00:45]} 31. Raf1 {[%clk 0:00:57]}  Rgf8 {[%clk 0:00:43]} 32. Nd1 {[%clk 0:00:54]}  Ng5 {[%clk 0:00:39]} 33. Rxf4 {[%clk 0:00:48]}  Rxf4 {[%clk 0:00:40]} 34. Bd2 {[%clk 0:00:47]}  Nxh3 {[%clk 0:00:40]} 35. Bxf4 {[%clk 0:00:40]}  Nxf4 {[%clk 0:00:39]} 36. Qg3 {[%clk 0:00:33]}  Qxg3 {[%clk 0:00:30]} 37. Rxg3 {[%clk 0:00:33]}  Ne2 {[%clk 0:00:24]} 38. Rh3 {[%clk 0:00:33]}  Kg7 {[%clk 0:00:19]} 39. Nc3 {[%clk 0:00:23]}  Nxd4 {[%clk 0:00:19]} 40. b4 {[%clk 0:00:24]}  e5 {[%clk 0:00:18]} 41. b5 {[%clk 0:00:23]}  cxb5 {[%clk 0:00:14]} 42. axb5 {[%clk 0:00:23]}  Nxb5 {[%clk 0:00:14]} 43. Nxd5 {[%clk 0:00:23]}  Bc6 {[%clk 0:00:13]} 44. Ne3 {[%clk 0:00:23]}  Nd4 {[%clk 0:00:12]} 45. Rh5 {[%clk 0:00:21]}  Nf3 {[%clk 0:00:09]} 46. Rf5 {[%clk 0:00:19]}  Nd2 {[%clk 0:00:04]} 47. Rxe5 {[%clk 0:00:18]}  Nb3 {[%clk 0:00:03]} 48. h4 {[%clk 0:00:17]}  Kf6 {[%clk 0:00:02]} 49. Rf5+ {[%clk 0:00:16]}  Kg6 {[%clk 0:00:03]} 50. Kh2 {[%clk 0:00:16]}  Nd4 {[%clk 0:00:02]} 51. h5+ {[%clk 0:00:16]}  Kg7 {[%clk 0:00:02]} 52. Rf2 {[%clk 0:00:15]}  Nf3+ {[%clk 0:00:02]} 53. Kg3 {[%clk 0:00:15]}  Ne5 {[%clk 0:00:02]} 54. Ra2 {[%clk 0:00:12]}  Nd3 {[%clk 0:00:01]} 55. Rc2 {[%clk 0:00:11]}  Kf6 {[%clk 0:00:01]} 56. Nf5 {[%clk 0:00:10]}  Kg5 {[%clk 0:00:00]} 57. Ne3 {[%clk 0:00:07]} 1-0